bitfinex/quotes_SOLUSD_20240626
["timestamp","ask_amount","ask_price","bid_price","bid_amount"]
[1719365855928,7.2155,138.59,138.53,7.2186]
[1719365856111,7.2168,138.57,138.51,18.0485]
[1719365856312,7.2161,138.58,138.52,7.2187]
[1719365856708,18.0367,138.61,138.5,7.2198]
[1719365856948,18.0367,138.61,138.51,7.2196]
[1719365857121,18.0367,138.61,138.49,6.7259]
[1719365857317,18.0367,138.61,138.5,18.2197]
[1719365857523,7.2156,138.59,138.53,7.2185]
[1719365857832,7.2166,138.57,138.51,7.2196]
[1719365858440,7.2161,138.58,138.52,7.219]
[1719365859131,7.2166,138.57,138.51,7.2196]
[1719365859541,7.2171,138.56,138.5,25.4397]
[1719365859930,7.2177,138.55,138.5,18.0497]
[1719365860320,7.2177,138.55,138.49,13.7765]
[1719365860534,0.17,138.62,138.44,36.1154]
[1719365860535,100.0,138.6,138.44,6.027]
[1719365860719,18.0446,138.55,138.44,24.0848]
[1719365860913,18.0446,138.55,138.32,100.0]
[1719365860914,0.17,138.54,138.39,6.027]
[1719365861329,7.2207,138.49,138.44,18.0571]
[1719365861528,7.2202,138.5,138.44,25.28]
[1719365861821,18.0479,138.52,138.41,18.0621]
[1719365862040,0.17,138.54,138.4,36.1262]
[1719365862252,7.2199,138.51,138.4,36.1262]
[1719365862447,23.2131,138.55,138.4,36.1262]
[1719365862753,23.2131,138.55,138.4,57.9462]
[1719365862931,7.2202,138.5,138.44,18.0578]
[1719365863128,7.2202,138.5,138.45,7.2227]
[1719365863333,7.2205,138.5,138.44,18.0578]
[1719365863842,18.0474,138.53,138.42,7.2242]
[1719365864048,7.2216,138.48,138.42,7.2242]
[1719365864244,7.2222,138.47,138.41,25.2863]
[1719365864746,7.2222,138.47,138.4,36.1262]
[1719365864747,18.046,138.54,138.43,18.0588]
[1719365864950,7.2204,138.5,138.43,25.2821]
[1719365865116,7.2208,138.49,138.43,25.2821]
[1719365865449,7.2214,138.48,138.43,18.0588]
[1719365865654,7.2224,138.46,138.4,25.2877]
[1719365865824,18.0509,138.5,138.4,18.0627]
[1719365866019,18.054,138.48,138.39,6.027]
[1719365866266,18.054,138.48,138.37,18.0665]
[1719365866267,7.2241,138.43,138.37,25.2931]
[1719365866430,7.2231,138.45,138.37,18.0665]
[1719365866620,7.2231,138.45,138.39,7.2257]
[1719365866829,7.225,138.41,138.35,7.2278]
[1719365867025,7.225,138.41,138.34,24.201]
[1719365867225,7.2239,138.43,138.37,7.2268]
[1719365867431,7.2232,138.45,138.39,7.2259]
[1719365867641,7.2224,138.46,138.4,7.2253]
[1719365868151,7.2228,138.45,138.38,18.0658]
[1719365868446,7.2244,138.42,138.36,7.2274]
[1719365868617,7.2238,138.44,138.37,52.2269]
[1719365868823,7.2238,138.44,138.38,7.226]
[1719365869035,7.2238,138.44,138.39,7.2259]
[1719365869254,7.2229,138.45,138.39,7.2259]
[1719365869752,7.2239,138.43,138.38,7.2263]
[1719365870050,7.2239,138.43,138.39,45.0]
[1719365870229,7.2234,138.44,138.39,45.0]
[1719365870648,7.2239,138.43,138.39,45.0]
[1719365870862,36.111,138.47,138.35,7.228]
[1719365871155,260.3684,138.49,138.38,7.2261]
[1719365871156,7.2235,138.44,138.38,7.2261]
[1719365871849,7.224,138.43,138.37,7.2269]
[1719365872356,7.2235,138.44,138.38,52.2264]
[1719365872850,7.2244,138.42,138.36,25.2955]
[1719365873356,7.2239,138.43,138.37,7.2269]
[1719365873648,7.2244,138.42,138.36,18.0683]
[1719365873956,18.0566,138.46,138.36,18.0683]
[1719365874152,18.0566,138.46,138.37,45.0]
[1719365874653,7.2242,138.43,138.37,52.2265]
[1719365875154,7.2242,138.43,138.38,7.2264]
[1719365875371,7.2242,138.43,138.37,52.2268]
[1719365875877,18.0595,138.44,138.34,6.1301]
[1719365876167,18.0595,138.44,138.35,7.2278]
[1719365876346,7.2245,138.42,138.36,7.2274]
[1719365876542,18.0553,138.47,138.34,6.1301]
[1719365876864,36.2818,138.46,138.34,13.3585]
[1719365877072,18.0602,138.43,138.34,31.4293]
[1719365877277,7.225,138.41,138.35,52.228]
[1719365877449,7.225,138.41,138.35,52.2278]
[1719365878345,7.2254,138.4,138.35,45.0]
[1719365878555,18.0586,138.44,138.34,6.1301]
[1719365879439,7.226,138.39,138.34,6.1301]
[1719365879767,18.0586,138.44,138.35,45.0]
[1719365879949,7.2247,138.42,138.36,7.2271]
[1719365880269,7.2259,138.39,138.34,24.2013]
[1719365880571,18.0618,138.42,138.34,6.1301]
[1719365880947,18.0641,138.4,138.3,6.4402]
[1719365881163,18.2302,138.43,138.32,18.0733]
[1719365881352,36.2806,138.47,138.36,7.2275]
[1719365881552,7.225,138.41,138.35,7.2276]
[1719365881756,7.2245,138.42,138.36,7.2271]
[1719365882069,7.2259,138.39,138.34,7.2283]
[1719365882246,7.2256,138.4,138.35,45.0]
[1719365882453,18.0586,138.44,138.36,7.2274]
[1719365882663,18.0586,138.44,138.34,18.0711]
[1719365883178,7.225,138.41,138.35,7.2276]
[1719365883362,7.2255,138.4,138.34,25.2995]
[1719365883563,7.2255,138.4,138.35,52.228]
[1719365883870,7.2255,138.4,138.35,45.0]
[1719365884169,7.225,138.41,138.36,7.2272]
[1719365884956,7.225,138.41,138.35,52.2279]
[1719365885478,0.17,138.45,138.35,45.0]
[1719365885649,7.228,138.35,138.3,6.4402]
[1719365885849,36.1191,138.44,138.3,6.4402]
[1719365885850,7.2285,138.34,138.3,6.4402]
[1719365886045,7.2282,138.35,138.3,13.6708]
[1719365886487,7.2276,138.36,138.31,7.2301]
[1719365886672,7.2252,138.41,138.35,7.2278]
[1719365886878,7.2276,138.36,138.31,25.3051]
[1719365887081,18.0638,138.4,138.3,6.4402]
[1719365887384,7.2282,138.35,138.3,13.6707]
[1719365887561,7.2287,138.34,138.3,6.4402]
[1719365887752,18.0666,138.38,138.3,6.4402]
[1719365888088,7.2292,138.33,138.28,16.0153]
[1719365888248,7.2286,138.34,138.28,23.2469]
[1719365888573,7.2281,138.35,138.29,7.2308]
[1719365888787,7.227,138.37,138.32,7.2294]
[1719365889147,7.227,138.37,138.31,25.3048]
[1719365889383,7.2283,138.35,138.29,7.2308]
[1719365889564,7.2289,138.34,138.28,34.0935]
[1719365889760,7.2279,138.36,138.3,7.2306]
[1719365889979,7.2271,138.37,138.31,7.23]
[1719365890184,33.2922,138.4,138.3,18.0764]
[1719365890347,7.2277,138.36,138.3,25.3069]
[1719365890549,7.2277,138.36,138.31,7.2301]
[1719365890754,33.2922,138.4,138.31,7.2299]
[1719365890755,7.227,138.37,138.31,7.2299]
[1719365890962,18.0605,138.43,138.28,37.8353]
[1719365891179,7.2252,138.41,138.3,21.82]
[1719365891480,255.2,138.49,138.45,7.2227]
[1719365891772,18.0498,138.51,138.41,25.2863]
[1719365891975,7.2222,138.47,138.41,7.2247]
[1719365892282,18.0498,138.51,138.42,7.2243]
[1719365892472,7.2218,138.47,138.41,7.2245]
[1719365893076,15.0213,138.52,138.37,6.3177]
[1719365893273,15.0213,138.52,138.38,45.0]
[1719365893274,7.2241,138.43,138.38,45.0]
[1719365893661,7.2234,138.44,138.38,52.2263]
[1719365893867,7.2229,138.45,138.39,7.2259]
[1719365894979,7.2233,138.44,138.39,7.2259]
[1719365895172,7.2224,138.46,138.4,7.2253]
[1719365895556,7.2229,138.45,138.39,7.2258]
[1719365895758,7.2224,138.46,138.4,52.2253]
[1719365895956,7.2224,138.46,138.4,7.2253]
[1719365896181,18.0523,138.49,138.38,18.0655]
[1719365896363,7.2242,138.43,138.37,13.5445]
[1719365896691,7.2235,138.44,138.38,7.2263]
[1719365897459,7.2229,138.45,138.39,7.2257]
[1719365897686,18.0512,138.5,138.39,18.0644]
[1719365897991,18.0512,138.5,138.39,25.2899]
[1719365898166,7.2234,138.44,138.39,18.0644]
[1719365898986,7.2229,138.45,138.39,25.2902]
[1719365900278,7.2218,138.47,138.41,7.2248]
[1719365900477,15.0213,138.52,138.41,7.2248]
[1719365900478,7.2212,138.49,138.41,18.062]
[1719365900660,7.2234,138.44,138.38,18.2354]
[1719365900861,7.2234,138.44,138.39,45.0]
[1719365901067,7.2234,138.44,138.39,52.2258]
[1719365901285,7.2223,138.46,138.4,7.225]
[1719365902372,7.225,138.41,138.37,6.3177]
[1719365902571,7.2255,138.4,138.37,6.3177]
[1719365902774,0.17,138.47,138.33,29.51]
[1719365902775,7.2261,138.39,138.33,29.51]
[1719365903084,7.2266,138.38,138.33,22.2813]
[1719365903981,7.2266,138.38,138.33,29.5103]
[1719365904190,18.06,138.43,138.34,18.0709]
[1719365904382,7.2251,138.41,138.34,18.0709]
[1719365904569,0.17,138.44,138.33,22.2813]
[1719365904890,0.17,138.44,138.33,29.5099]
[1719365904891,7.2262,138.39,138.33,29.5099]
[1719365905087,7.2262,138.39,138.34,7.2283]
[1719365905288,7.226,138.39,138.33,47.582]
[1719365905494,15.4174,138.44,138.3,18.0757]
[1719365905697,7.2291,138.33,138.29,21.1962]
[1719365905868,7.2296,138.32,138.29,6.0339]
[1719365906069,7.2292,138.33,138.29,6.0339]
[1719365906288,7.2286,138.34,138.29,6.0339]
[1719365906471,7.2281,138.35,138.29,13.265]
[1719365906681,7.2292,138.33,138.29,6.0339]
[1719365906889,18.0682,138.37,138.29,6.0339]
[1719365906890,7.2285,138.35,138.29,6.0339]
[1719365907390,7.2285,138.35,138.29,13.265]
[1719365907699,18.0645,138.4,138.29,24.1113]
[1719365907894,0.17,138.41,138.32,7.2295]
[1719365908194,7.2265,138.38,138.3,45.0]
[1719365908367,7.2275,138.37,138.31,0.17]
[1719365908568,7.2275,138.37,138.31,7.4]
[1719365908897,7.2275,138.37,138.32,45.0]
[1719365909082,7.2275,138.37,138.31,7.4]
[1719365909083,100.17,138.42,138.29,6.0339]
[1719365909289,7.2295,138.33,138.29,6.0339]
[1719365909487,7.2296,138.32,138.29,6.0339]
[1719365909780,7.2286,138.34,138.29,6.0339]
[1719365910390,5.1684,138.38,138.29,6.0339]
[1719365910580,7.2298,138.32,138.29,6.0339]
[1719365910778,7.2292,138.33,138.29,6.0339]
[1719365910999,7.2296,138.32,138.29,6.0339]
[1719365911376,7.2291,138.33,138.29,6.0339]
[1719365911575,5.1684,138.38,138.29,24.1112]
[1719365911781,101.1271,138.41,138.29,6.0339]
[1719365911966,0.17,138.4,138.29,6.0339]
[1719365912172,7.2292,138.33,138.29,6.0339]
[1719365912370,18.0692,138.36,138.29,6.0339]
[1719365912371,7.2296,138.32,138.29,6.0339]
[1719365912774,7.2292,138.33,138.29,6.0339]
[1719365912973,7.2297,138.32,138.29,6.0339]
[1719365913480,7.2303,138.31,138.29,6.0339]
[1719365913679,18.0692,138.36,138.29,6.0339]
[1719365913987,7.2285,138.35,138.29,13.2647]
[1719365914587,18.0658,138.39,138.3,18.0762]
[1719365914991,7.2275,138.36,138.31,7.2296]
[1719365915794,23.2302,138.42,138.3,18.0762]
[1719365916107,7.226,138.39,138.34,7.2285]
[1719365916317,136.1068,138.48,138.35,51.5894]
[1719365916318,7.2239,138.43,138.35,51.5894]
[1719365916611,7.2239,138.43,138.37,7.2265]
[1719365916816,7.2234,138.44,138.38,7.2262]
[1719365917118,16.2062,138.49,138.38,18.0658]
[1719365917282,18.0497,138.51,138.42,7.2243]
[1719365917611,7.2223,138.46,138.41,18.0619]
[1719365917900,7.2245,138.42,138.36,7.2273]
[1719365918111,7.2245,138.42,138.35,6.5894]
[1719365918112,18.0576,138.45,138.35,24.6591]
[1719365918304,18.0576,138.45,138.36,45.0]
[1719365919894,7.2256,138.4,138.35,6.5894]
[1719365920078,18.0576,138.45,138.35,13.8173]
[1719365920288,7.2249,138.41,138.35,13.8173]
[1719365920605,18.0604,138.43,138.35,6.5894]
[1719365920920,18.0627,138.41,138.33,15.0704]
[1719365921113,7.2281,138.35,138.31,6.5907]
[1719365921602,7.228,138.35,138.31,6.5907]
[1719365922105,7.2276,138.36,138.31,6.5907]
[1719365922612,5.1684,138.43,138.32,18.0734]
[1719365922816,255.37,138.44,138.33,52.229]
[1719365923307,7.2265,138.38,138.32,25.3029]
[1719365923510,7.226,138.39,138.33,7.2289]
[1719365923692,7.2252,138.41,138.35,7.2279]
[1719365923895,18.06,138.43,138.35,7.2279]
[1719365924208,7.2248,138.42,138.34,18.071]
[1719365924405,7.2248,138.42,138.36,70.2955]
[1719365924611,7.225,138.41,138.36,70.2955]
[1719365924981,7.2244,138.42,138.36,70.2955]
[1719365925187,7.2238,138.44,138.38,18.0656]
[1719365925401,7.2238,138.44,138.39,51.1591]
[1719365926117,7.2235,138.44,138.39,6.1591]
[1719365926317,7.2218,138.47,138.4,45.0]
[1719365926504,7.2218,138.47,138.41,25.2865]
[1719365927019,7.2218,138.47,138.42,7.2242]
[1719365927315,7.2218,138.47,138.41,25.2865]
[1719365928509,7.2216,138.48,138.43,18.0593]
[1719365928904,7.2212,138.49,138.43,27.03946372]
[1719365929213,7.2212,138.49,138.44,45.0]
[1719365929817,7.2218,138.47,138.4,18.0626]
[1719365929989,7.2213,138.48,138.42,7.2242]
[1719365930189,7.2213,138.48,138.43,52.2238]
[1719365930496,18.0498,138.51,138.43,7.2238]
[1719365930691,18.0498,138.51,138.43,7.2235]
[1719365930890,7.2208,138.49,138.43,7.2235]
[1719365931106,7.2208,138.49,138.44,45.0]
[1719365931288,7.2212,138.48,138.44,45.0]
[1719365932200,18.0498,138.51,138.41,7.3945]
[1719365932394,18.0498,138.51,138.41,7.2245]
[1719365933214,7.2224,138.46,138.4,7.2252]
[1719365933383,7.2228,138.45,138.4,7.2252]
[1719365933589,7.2229,138.45,138.39,31.6192]
[1719365933814,7.2229,138.45,138.39,31.4492]
[1719365934110,116.0338,138.5,138.39,6.1591]
[1719365934310,7.2254,138.4,138.37,16.4694]
[1719365934810,7.225,138.41,138.37,16.4694]
[1719365935308,7.2245,138.42,138.37,16.4694]
[1719365935517,18.0601,138.43,138.35,6.2888]
[1719365935703,7.2259,138.39,138.35,6.2888]
[1719365935891,7.2265,138.38,138.35,6.2888]
[1719365937416,18.0632,138.41,138.35,6.2888]
[1719365937616,7.2266,138.38,138.35,6.2888]
[1719365939118,52.1864,138.43,138.32,6.0252]
[1719365939325,18.0652,138.39,138.32,6.0252]
[1719365939622,7.2276,138.36,138.32,6.0252]
[1719365940312,20.34,138.42,138.32,6.0252]
[1719365940514,7.2275,138.36,138.32,6.0252]
[1719365941019,7.2255,138.4,138.34,7.2282]
[1719365941202,20.17,138.42,138.34,7.2282]
[1719365941203,7.226,138.39,138.34,7.2282]
[1719365941399,7.226,138.39,138.33,7.2289]
[1719365941788,18.0628,138.41,138.32,24.0983]
[1719365941993,7.2276,138.36,138.32,6.0252]
[1719365942199,18.0628,138.41,138.32,6.0252]
[1719365942788,7.2279,138.36,138.32,6.0252]
[1719365942993,7.2266,138.38,138.32,13.2547]
[1719365943496,18.0628,138.41,138.32,6.0252]
[1719365943497,18.0655,138.39,138.32,6.0252]
[1719365943703,7.2282,138.35,138.32,6.0252]
[1719365943916,7.2271,138.37,138.32,6.0252]
[1719365944214,7.2265,138.38,138.32,13.2546]
[1719365944606,38.0617,138.42,138.32,24.0984]
[1719365944811,18.0578,138.45,138.35,7.2277]
[1719365944994,7.225,138.41,138.35,7.2277]
[1719365945189,18.0578,138.45,138.36,7.2273]
[1719365945400,18.0578,138.45,138.36,45.0]
[1719365945401,7.2255,138.4,138.36,45.0]
[1719365945707,7.226,138.39,138.34,25.299]
[1719365945908,7.225,138.41,138.36,7.2274]
[1719365946108,18.0568,138.46,138.36,7.2274]
[1719365946303,7.2248,138.42,138.36,7.2274]
[1719365946527,7.2254,138.4,138.35,52.3979]
[1719365947603,7.225,138.41,138.36,7.2274]
[1719365947804,39.2329,138.47,138.37,15.3883]
[1719365948006,7.2239,138.43,138.38,7.2263]
[1719365948619,7.2234,138.44,138.4,6.4177]
[1719365948816,7.223,138.45,138.4,6.4177]
[1719365949131,7.2224,138.46,138.4,13.6429]
[1719365949821,7.2219,138.47,138.4,24.4806]
[1719365950018,7.2219,138.47,138.41,52.2245]
[1719365950226,7.2219,138.47,138.41,55.84028233]
[1719365950608,18.0473,138.53,138.42,18.2304]
[1719365950809,18.0473,138.53,138.43,48.61962202]
[1719365951109,18.0497,138.51,138.4,6.4177]
[1719365951314,18.0497,138.51,138.41,45.0]
[1719365951619,7.2213,138.48,138.42,7.224]
[1719365952207,7.2231,138.45,138.4,6.4177]
[1719365953933,7.2234,138.44,138.4,6.4177]
[1719365954232,7.2214,138.48,138.42,7.2242]
[1719365954525,18.0481,138.52,138.41,45.0]
[1719365954729,7.2218,138.47,138.41,45.0]
[1719365955213,18.0481,138.52,138.42,18.0604]
[1719365955413,20.17,138.51,138.42,18.0604]
[1719365955611,20.17,138.51,138.4,6.4177]
[1719365955612,18.0511,138.5,138.4,6.4177]
[1719365955815,0.17,138.49,138.4,6.4177]
[1719365956544,7.2247,138.42,138.4,6.4177]
[1719365958134,18.2228,138.49,138.4,6.4177]
[1719365958339,7.2234,138.44,138.4,6.4177]
[1719365959914,7.2239,138.43,138.4,6.4177]
[1719365961040,18.055,138.47,138.4,6.4177]
[1719365961041,7.2235,138.44,138.4,6.4177]
[1719365961343,18.055,138.47,138.4,6.4177]
[1719365961639,20.34,138.46,138.37,15.3883]
[1719365961847,18.0597,138.43,138.37,15.3883]
[1719365962041,7.2259,138.39,138.36,6.0591]
[1719365962418,18.0597,138.43,138.36,6.0591]
[1719365962635,7.226,138.39,138.36,6.0591]
[1719365963031,18.0563,138.46,138.36,6.0591]
[1719365963234,7.2268,138.38,138.36,6.0591]
[1719365963439,7.2254,138.4,138.36,6.0591]
[1719365963626,18.0616,138.42,138.36,6.0591]
[1719365963627,7.2265,138.38,138.36,6.0591]
[1719365963950,7.2263,138.39,138.36,6.0591]
[1719365964244,7.2255,138.4,138.36,6.0591]
[1719365964449,7.2254,138.4,138.36,6.0591]
[1719365965734,7.2249,138.41,138.36,6.0591]
[1719365965936,18.0598,138.43,138.36,6.0591]
[1719365966429,7.2263,138.39,138.36,6.0591]
[1719365967545,18.0598,138.43,138.36,6.0591]
[1719365967723,7.2266,138.38,138.36,6.0591]
[1719365968547,7.2261,138.39,138.36,6.0591]
[1719365970316,18.0624,138.41,138.36,6.0591]
[1719365970532,36.1161,138.45,138.33,21.7668]
[1719365970533,18.0653,138.39,138.33,21.7668]
[1719365970738,18.0653,138.39,138.29,22.6071]
[1719365970739,7.2286,138.34,138.29,22.6071]
[1719365970945,7.2287,138.34,138.29,29.8381]
[1719365971134,7.2276,138.36,138.3,7.2306]
[1719365971832,7.227,138.37,138.32,7.2291]
[1719365972026,7.2265,138.38,138.33,7.229]
[1719365972227,18.0606,138.43,138.33,18.0721]
[1719365972435,20.0,138.42,138.33,18.0721]
[1719365973143,7.2248,138.42,138.37,7.2269]
[1719365973317,278.4251,138.46,138.36,29.7964]
[1719365973318,7.225,138.41,138.36,29.7964]
[1719365973748,7.2238,138.43,138.37,18.0673]
[1719365973923,7.2238,138.43,138.37,25.2942]
[1719365974123,7.2245,138.42,138.37,25.2942]
[1719365974863,7.2245,138.42,138.37,18.0673]
[1719365975857,7.2245,138.42,138.36,29.7963]
[1719365975858,38.0517,138.5,138.39,18.0642]
[1719365976031,20.0,138.49,138.4,52.3952]
[1719365976652,7.2226,138.46,138.4,52.3952]
[1719365976861,7.2238,138.44,138.39,18.0642]
[1719365977030,7.2232,138.45,138.39,25.2901]
[1719365977345,7.2232,138.45,138.4,45.0]
[1719365978746,7.2221,138.47,138.41,7.2247]
[1719365978950,20.0,138.49,138.41,7.2247]
[1719365979137,20.0,138.5,138.41,7.2247]
[1719365979530,20.0,138.5,138.4,52.2252]
[1719365979939,7.2228,138.45,138.4,52.2252]
[1719365980139,7.2224,138.46,138.41,7.2248]
[1719365980750,255.2,138.51,138.43,29.8976]
[1719365980959,7.2227,138.46,138.43,22.6743]
[1719365981754,7.2227,138.46,138.41,25.2862]
[1719365982057,7.2228,138.45,138.4,51.0173]
[1719365982239,7.2219,138.47,138.41,7.2244]
[1719365982435,7.2219,138.47,138.4,51.0173]
[1719365983361,7.2219,138.47,138.42,7.2242]
[1719365983954,255.2,138.51,138.43,7.2237]
[1719365984465,7.2215,138.48,138.43,7.2237]
[1719365985058,7.2215,138.48,138.42,25.2846]
[1719365985228,7.2207,138.49,138.42,18.0605]
[1719365985431,18.0495,138.51,138.42,18.0605]
[1719365985651,18.0495,138.51,138.42,25.2848]
[1719365985854,7.2221,138.47,138.42,18.0605]
[1719365986446,7.2245,138.42,138.39,16.657]
[1719365986641,45.0,138.5,138.39,16.657]
[1719365986840,45.0,138.5,138.38,6.0733]
[1719365986841,7.2254,138.4,138.38,6.0733]
[1719365987037,7.2249,138.41,138.38,6.0733]
[1719365987466,7.225,138.41,138.38,6.0733]
[1719365988242,7.2255,138.4,138.38,6.0733]
[1719365988465,7.2255,138.4,138.35,33.3771]
[1719365988466,18.0603,138.43,138.35,21.5915]
[1719365988639,7.2268,138.38,138.35,21.5915]
[1719365989164,7.2261,138.39,138.35,21.5915]
[1719365989361,7.2252,138.41,138.35,21.5915]
[1719365989553,7.2252,138.41,138.35,28.8191]
[1719365989856,7.2252,138.41,138.36,7.2274]
[1719365990059,36.1178,138.44,138.35,21.5915]
[1719365990365,7.2265,138.38,138.35,21.5915]
[1719365990667,18.0613,138.42,138.35,21.5915]
[1719365990968,7.2261,138.39,138.35,21.5915]
[1719365991131,27.225,138.41,138.35,39.6612]
[1719365991448,7.225,138.41,138.36,7.2274]
[1719365992042,7.225,138.41,138.35,39.6612]
[1719365992043,7.225,138.41,138.35,46.889]
[1719365992275,7.2254,138.4,138.35,46.889]
[1719365993159,7.2254,138.4,138.35,39.6612]
[1719365993462,7.226,138.39,138.35,39.6612]
[1719365994574,7.2256,138.4,138.35,39.6612]
[1719365994940,7.226,138.39,138.35,39.6612]
[1719365995637,7.2255,138.4,138.35,39.6612]
[1719365995836,7.2251,138.41,138.35,46.8891]
[1719365996063,7.2251,138.41,138.36,45.0]
[1719365996533,7.2256,138.4,138.36,45.0]
[1719365997045,7.226,138.39,138.35,21.5915]
[1719365997543,7.2265,138.38,138.35,21.5915]
[1719365997939,18.0599,138.43,138.35,21.5915]
[1719365997940,7.2261,138.39,138.35,21.5915]
[1719365998376,18.0626,138.41,138.35,21.5915]
[1719365998542,7.2275,138.36,138.35,21.5915]
[1719365999041,7.2266,138.38,138.35,21.5915]
[1719365999555,7.226,138.39,138.35,21.5915]
[1719365999752,7.2266,138.38,138.35,21.5915]
[1719366000051,18.0617,138.42,138.35,21.5915]
[1719366000253,20.0,138.41,138.35,21.5915]
[1719366000871,27.2252,138.41,138.36,7.2274]
[1719366001074,7.2257,138.4,138.35,21.5915]
[1719366001374,7.2266,138.38,138.35,21.5915]
[1719366002667,7.227,138.37,138.35,21.5915]
[1719366002875,7.229,138.33,138.32,6.1641]
[1719366003165,56.1263,138.41,138.32,6.1641]
[1719366003166,18.0677,138.37,138.32,6.1641]
[1719366003373,7.2288,138.34,138.32,6.1641]
[1719366003677,7.229,138.33,138.32,6.1641]
[1719366003978,7.23,138.32,138.29,6.2526]
[1719366004151,7.2292,138.33,138.29,6.2526]
[1719366004347,18.0677,138.37,138.29,6.2526]
[1719366004973,18.0643,138.4,138.29,24.33]
[1719366005276,18.0643,138.4,138.32,7.2292]
[1719366005277,7.2271,138.37,138.32,7.2292]
[1719366005456,7.2276,138.36,138.31,25.3049]
[1719366005659,7.2284,138.35,138.3,52.4005]
[1719366005860,7.2287,138.34,138.3,45.17]
[1719366006746,7.2282,138.35,138.3,45.17]
[1719366007966,7.2282,138.35,138.3,52.4006]
[1719366008173,38.0628,138.41,138.3,63.2462]
[1719366008353,7.228,138.35,138.3,70.4767]
[1719366009075,7.2291,138.33,138.29,6.2526]
[1719366009274,18.0682,138.37,138.29,6.2526]
[1719366009674,63.68553245,138.41,138.29,24.33]
[1719366009675,18.0645,138.4,138.29,24.33]
[1719366009880,7.227,138.37,138.32,7.2295]
[1719366010189,7.2276,138.36,138.31,25.3049]
[1719366010551,18.0664,138.38,138.29,13.4833]
[1719366010774,7.2284,138.35,138.3,0.17]
[1719366011276,18.0664,138.38,138.29,6.2526]
[1719366011876,7.2294,138.33,138.29,6.2526]
[1719366012257,7.2287,138.34,138.29,6.2526]
[1719366012650,7.2291,138.33,138.29,6.2526]
[1719366015456,7.2287,138.34,138.29,13.4836]
[1719366015679,18.0664,138.38,138.29,6.2526]
[1719366015875,20.0,138.39,138.29,6.2526]
[1719366016080,291.2298,138.43,138.3,18.076]
[1719366016081,20.0,138.42,138.3,18.076]
[1719366016293,7.2287,138.34,138.3,18.076]
[1719366016846,7.2295,138.33,138.29,6.2526]
[1719366017251,18.0682,138.37,138.29,6.2526]
[1719366017852,7.2286,138.34,138.29,13.4837]
[1719366018290,18.0643,138.4,138.3,7.2306]
[1719366018454,18.0643,138.4,138.31,0.17]
[1719366018660,7.2269,138.38,138.32,7.2294]
[1719366018978,18.0664,138.38,138.29,6.2526]
[1719366019157,7.2286,138.34,138.29,6.2526]
[1719366019481,7.2292,138.33,138.29,6.2526]
[1719366019787,7.2284,138.35,138.3,7.2303]
[1719366020151,7.2277,138.36,138.31,7.2298]
[1719366020351,18.0631,138.41,138.33,7.2286]
[1719366020557,7.2265,138.38,138.33,7.2286]
[1719366021082,18.0631,138.41,138.32,18.0735]
[1719366021083,7.2276,138.36,138.32,18.0735]
[1719366021609,7.2271,138.37,138.32,25.3029]
[1719366021785,18.0631,138.41,138.32,18.0735]